[Event "Chessable Masters - Torneo preliminare"]
[White "Keymer, Vincent"]
[Black "Kramnik, Vladimir"]
[WhiteFideId "12940690"]
[BlackFideId "4101588"]
[WhiteElo "2630"]
[BlackElo "2756"]
[Result "1-0"]
[Round "8"]
[TimeControl "600+2"]
[Date "2023.03.13"]
[WhiteClock "0:00:08"]
[BlackClock "0:00:03"]

1. d4 {[%clk 0:10:01]}  d5 {[%clk 0:10:00]} 2. c4 {[%clk 0:10:02]}  c6 {[%clk 0:10:01]} 3. Nf3 {[%clk 0:10:03]}  Nf6 {[%clk 0:10:02]} 4. e3 {[%clk 0:10:04]}  Bf5 {[%clk 0:10:02]} 5. Nc3 {[%clk 0:10:04]}  e6 {[%clk 0:10:02]} 6. Nh4 {[%clk 0:10:05]}  Be4 {[%clk 0:10:03]} 7. f3 {[%clk 0:10:04]}  Bg6 {[%clk 0:10:05]} 8. Bd2 {[%clk 0:10:04]}  Nbd7 {[%clk 0:10:05]} 9. cxd5 {[%clk 0:09:55]}  Nxd5 {[%clk 0:10:05]} 10. Nxg6 {[%clk 0:09:56]}  hxg6 {[%clk 0:10:06]} 11. Qb3 {[%clk 0:09:50]}  Qb6 {[%clk 0:09:58]} 12. O-O-O {[%clk 0:09:13]}  Qxb3 {[%clk 0:09:48]} 13. axb3 {[%clk 0:09:13]}  Be7 {[%clk 0:08:57]} 14. e4 {[%clk 0:08:51]}  Nc7 {[%clk 0:08:52]} 15. Be3 {[%clk 0:08:36]}  O-O-O {[%clk 0:08:40]} 16. Bc4 {[%clk 0:08:13]}  a6 {[%clk 0:08:02]} 17. d5 {[%clk 0:06:41]}  Ne5 {[%clk 0:06:50]} 18. Bb6 {[%clk 0:06:30]}  Rd7 {[%clk 0:06:06]} 19. Kb1 {[%clk 0:04:20]}  g5 {[%clk 0:04:55]} 20. h3 {[%clk 0:02:46]}  Bf6 {[%clk 0:04:23]} 21. Rc1 {[%clk 0:02:41]}  Nxc4 {[%clk 0:03:18]} 22. bxc4 {[%clk 0:02:41]}  Bxc3 {[%clk 0:03:15]} 23. dxc6 {[%clk 0:02:32]}  Rd2 {[%clk 0:02:50]} 24. Rxc3 {[%clk 0:02:32]}  Rxg2 {[%clk 0:02:44]} 25. Rd1 {[%clk 0:02:01]}  bxc6 {[%clk 0:02:40]} 26. Rcd3 {[%clk 0:02:01]}  c5 {[%clk 0:00:57]} 27. Ba5 {[%clk 0:01:33]}  e5 {[%clk 0:00:49]} 28. Rd7 {[%clk 0:01:11]}  Ne6 {[%clk 0:00:48]} 29. Ra7 {[%clk 0:01:12]}  Rxh3 {[%clk 0:00:28]} 30. Rdd7 {[%clk 0:00:32]}  Rxf3 {[%clk 0:00:24]} 31. Re7 {[%clk 0:00:20]}  Kb8 {[%clk 0:00:25]} 32. Rab7+ {[%clk 0:00:07]}  Kc8 {[%clk 0:00:21]} 33. Ra7 {[%clk 0:00:08]}  Kb8 {[%clk 0:00:22]} 34. Bc3 {[%clk 0:00:03]}  Nd4 {[%clk 0:00:07]} 35. Rab7+ {[%clk 0:00:04]}  Kc8 {[%clk 0:00:08]} 36. Rbc7+ {[%clk 0:00:06]}  Kb8 {[%clk 0:00:08]} 37. Rxc5 {[%clk 0:00:02]}  f6 {[%clk 0:00:04]} 38. Rd5 {[%clk 0:00:04]}  Kc8 {[%clk 0:00:05]} 39. Rc5+ {[%clk 0:00:05]}  Kb8 {[%clk 0:00:05]} 40. Rd5 {[%clk 0:00:06]}  Kc8 {[%clk 0:00:05]} 41. Re8+ {[%clk 0:00:06]}  Kb7 {[%clk 0:00:05]} 42. Ba5 {[%clk 0:00:07]}  Rb3 {[%clk 0:00:03]} 43. Re7+ {[%clk 0:00:08]} 1-0


[Site "Internet"]

[Event "Chessable Masters - Torneo preliminare"]
[White "Tabatabaei, M. Amin"]
[Black "Lazavik, Denis"]
[WhiteFideId "12521213"]
[BlackFideId "13515110"]
[WhiteElo "2558"]
[BlackElo "2488"]
[Result "1/2-1/2"]
[Round "8"]
[TimeControl "600+2"]
[Date "2023.03.13"]
[WhiteClock "0:00:46"]
[BlackClock "0:00:45"]

1. d4 {[%clk 0:10:01]}  Nf6 {[%clk 0:10:00]} 2. c4 {[%clk 0:10:02]}  e6 {[%clk 0:10:01]} 3. Nf3 {[%clk 0:09:58]}  d5 {[%clk 0:10:02]} 4. g3 {[%clk 0:09:59]}  Be7 {[%clk 0:10:03]} 5. Bg2 {[%clk 0:10:00]}  O-O {[%clk 0:10:04]} 6. O-O {[%clk 0:10:01]}  dxc4 {[%clk 0:10:05]} 7. Qc2 {[%clk 0:10:02]}  a6 {[%clk 0:10:06]} 8. a4 {[%clk 0:10:03]}  Bd7 {[%clk 0:10:08]} 9. Qxc4 {[%clk 0:10:04]}  Bc6 {[%clk 0:10:09]} 10. Bg5 {[%clk 0:10:04]}  Nbd7 {[%clk 0:10:10]} 11. Nc3 {[%clk 0:10:04]}  h6 {[%clk 0:10:05]} 12. Bxf6 {[%clk 0:10:04]}  Nxf6 {[%clk 0:10:07]} 13. Rfd1 {[%clk 0:10:00]}  a5 {[%clk 0:09:56]} 14. Qd3 {[%clk 0:09:59]}  Bb4 {[%clk 0:09:43]} 15. Ne5 {[%clk 0:10:00]}  Bxg2 {[%clk 0:09:44]} 16. Kxg2 {[%clk 0:10:02]}  c6 {[%clk 0:09:40]} 17. Qf3 {[%clk 0:10:02]}  Qe7 {[%clk 0:09:27]} 18. Rac1 {[%clk 0:10:01]}  Rfd8 {[%clk 0:08:56]} 19. e3 {[%clk 0:10:00]}  Nd7 {[%clk 0:08:51]} 20. Nxd7 {[%clk 0:08:34]}  Rxd7 {[%clk 0:08:48]} 21. Ne4 {[%clk 0:08:32]}  Rad8 {[%clk 0:08:47]} 22. g4 {[%clk 0:05:51]}  Rd5 {[%clk 0:08:06]} 23. Ng3 {[%clk 0:05:37]}  Qd7 {[%clk 0:06:10]} 24. Rf1 {[%clk 0:04:26]}  c5 {[%clk 0:05:29]} 25. dxc5 {[%clk 0:04:27]}  Qxa4 {[%clk 0:05:19]} 26. Ne4 {[%clk 0:04:29]}  Qc6 {[%clk 0:05:16]} 27. Rc2 {[%clk 0:03:25]}  f5 {[%clk 0:04:41]} 28. Ng3 {[%clk 0:03:08]}  fxg4 {[%clk 0:04:35]} 29. Qe4 {[%clk 0:03:09]}  Re5 {[%clk 0:03:41]} 30. Qxc6 {[%clk 0:03:07]}  bxc6 {[%clk 0:03:42]} 31. Rc4 {[%clk 0:02:50]}  Rd2 {[%clk 0:03:07]} 32. Rb1 {[%clk 0:02:51]}  h5 {[%clk 0:02:15]} 33. Ne4 {[%clk 0:02:51]}  Rd3 {[%clk 0:02:16]} 34. h3 {[%clk 0:02:26]}  gxh3+ {[%clk 0:02:11]} 35. Kxh3 {[%clk 0:02:28]}  Rb3 {[%clk 0:02:01]} 36. Rd1 {[%clk 0:01:56]}  Rd5 {[%clk 0:01:58]} 37. Rg1 {[%clk 0:01:57]}  Kf8 {[%clk 0:01:42]} 38. Ng5 {[%clk 0:01:11]}  Ke7 {[%clk 0:01:41]} 39. Re4 {[%clk 0:01:05]}  e5 {[%clk 0:01:39]} 40. Nh7 {[%clk 0:00:41]}  Kf7 {[%clk 0:01:28]} 41. Ng5+ {[%clk 0:00:42]}  Kf6 {[%clk 0:00:58]} 42. Nh7+ {[%clk 0:00:44]}  Kf7 {[%clk 0:00:52]} 43. Ng5+ {[%clk 0:00:45]}  Kf6 {[%clk 0:00:44]} 44. Nh7+ {[%clk 0:00:46]}  Kf7 {[%clk 0:00:45]} 1/2-1/2


[Site "Internet"]

[Event "Chessable Masters - Torneo preliminare"]
[White "Chigaev, Maksim"]
[Black "Gukesh, D"]
[WhiteFideId "4108116"]
[BlackFideId "46616543"]
[WhiteElo "2568"]
[BlackElo "2629"]
[Result "1-0"]
[Round "8"]
[TimeControl "600+2"]
[Date "2023.03.13"]
[WhiteClock "0:00:04"]
[BlackClock "0:00:02"]

1. e4 {[%clk 0:10:01]}  c6 {[%clk 0:09:58]} 2. Nf3 {[%clk 0:09:28]}  d5 {[%clk 0:09:58]} 3. d3 {[%clk 0:09:30]}  Qc7 {[%clk 0:09:59]} 4. Nc3 {[%clk 0:09:27]}  dxe4 {[%clk 0:10:00]} 5. dxe4 {[%clk 0:09:27]}  e5 {[%clk 0:10:01]} 6. Bc4 {[%clk 0:09:29]}  b5 {[%clk 0:10:01]} 7. Bb3 {[%clk 0:09:29]}  h6 {[%clk 0:10:01]} 8. O-O {[%clk 0:08:53]}  Nf6 {[%clk 0:10:02]} 9. Nh4 {[%clk 0:08:32]}  a5 {[%clk 0:09:55]} 10. a3 {[%clk 0:08:21]}  Nbd7 {[%clk 0:09:53]} 11. Be3 {[%clk 0:08:12]}  Nc5 {[%clk 0:09:42]} 12. Qf3 {[%clk 0:08:05]}  Nxb3 {[%clk 0:08:37]} 13. cxb3 {[%clk 0:08:05]}  Be6 {[%clk 0:08:38]} 14. Rac1 {[%clk 0:06:32]}  Qb7 {[%clk 0:08:29]} 15. Qg3 {[%clk 0:06:07]}  Nd7 {[%clk 0:08:25]} 16. Kh1 {[%clk 0:04:22]}  Bxb3 {[%clk 0:06:52]} 17. f4 {[%clk 0:03:51]}  Bc4 {[%clk 0:06:47]} 18. fxe5 {[%clk 0:03:39]}  Bxf1 {[%clk 0:06:46]} 19. Rxf1 {[%clk 0:03:41]}  b4 {[%clk 0:05:35]} 20. e6 {[%clk 0:03:26]}  bxc3 {[%clk 0:05:18]} 21. exf7+ {[%clk 0:03:25]}  Kd8 {[%clk 0:05:19]} 22. bxc3 {[%clk 0:03:27]}  Bxa3 {[%clk 0:04:40]} 23. Ng6 {[%clk 0:02:35]}  Rf8 {[%clk 0:04:40]} 24. e5 {[%clk 0:02:08]}  Qb3 {[%clk 0:04:29]} 25. Nxf8 {[%clk 0:01:47]}  Bxf8 {[%clk 0:04:26]} 26. Qg4 {[%clk 0:01:31]}  Kc7 {[%clk 0:03:24]} 27. e6 {[%clk 0:01:28]}  Nf6 {[%clk 0:03:18]} 28. Qf5 {[%clk 0:00:30]}  Qd5 {[%clk 0:02:21]} 29. Bf4+ {[%clk 0:00:22]}  Kb7 {[%clk 0:02:19]} 30. Rb1+ {[%clk 0:00:18]}  Ka6 {[%clk 0:02:17]} 31. Qc2 {[%clk 0:00:19]}  c5 {[%clk 0:00:07]} 32. Qa4 {[%clk 0:00:11]}  c4 {[%clk 0:00:06]} 33. Be3 {[%clk 0:00:05]}  Rc8 {[%clk 0:00:03]} 34. Bd4 {[%clk 0:00:04]}  Qxe6 {[%clk 0:00:02]} 35. Qb5# {[%clk 0:00:04]} 1-0


[Site "Internet"]

[Event "Chessable Masters - Torneo preliminare"]
[White "Alonso Rosell, Alvar"]
[Black "Meier, Georg"]
[WhiteFideId "2270544"]
[BlackFideId "4675789"]
[WhiteElo "2473"]
[BlackElo "2624"]
[Result "0-1"]
[Round "8"]
[TimeControl "600+2"]
[Date "2023.03.13"]
[WhiteClock "0:00:04"]
[BlackClock "0:00:17"]

1. d4 {[%clk 0:10:01]}  e6 {[%clk 0:10:01]} 2. c4 {[%clk 0:10:02]}  b6 {[%clk 0:10:02]} 3. Nf3 {[%clk 0:10:02]}  Bb7 {[%clk 0:10:03]} 4. a3 {[%clk 0:09:42]}  Nf6 {[%clk 0:10:03]} 5. g3 {[%clk 0:09:35]}  c5 {[%clk 0:10:01]} 6. Bg2 {[%clk 0:09:34]}  cxd4 {[%clk 0:09:52]} 7. O-O {[%clk 0:09:34]}  Be7 {[%clk 0:09:44]} 8. b4 {[%clk 0:09:30]}  d6 {[%clk 0:08:54]} 9. Bb2 {[%clk 0:09:26]}  e5 {[%clk 0:08:42]} 10. e3 {[%clk 0:09:06]}  dxe3 {[%clk 0:08:37]} 11. fxe3 {[%clk 0:09:08]}  O-O {[%clk 0:08:11]} 12. Nc3 {[%clk 0:08:58]}  Nbd7 {[%clk 0:07:51]} 13. Qe2 {[%clk 0:08:58]}  a6 {[%clk 0:07:42]} 14. Rad1 {[%clk 0:08:49]}  Rc8 {[%clk 0:07:42]} 15. e4 {[%clk 0:08:39]}  Rc7 {[%clk 0:07:03]} 16. Nd2 {[%clk 0:08:23]}  Qa8 {[%clk 0:05:55]} 17. g4 {[%clk 0:08:19]}  h6 {[%clk 0:05:54]} 18. h4 {[%clk 0:07:55]}  Nh7 {[%clk 0:05:32]} 19. g5 {[%clk 0:07:41]}  hxg5 {[%clk 0:05:33]} 20. hxg5 {[%clk 0:07:37]}  Nxg5 {[%clk 0:05:21]} 21. Qg4 {[%clk 0:07:22]}  Qc8 {[%clk 0:04:52]} 22. Nd5 {[%clk 0:06:50]}  Bxd5 {[%clk 0:04:50]} 23. exd5 {[%clk 0:06:52]}  g6 {[%clk 0:04:03]} 24. Qg3 {[%clk 0:06:05]}  Kg7 {[%clk 0:03:50]} 25. Rf2 {[%clk 0:03:53]}  Qd8 {[%clk 0:02:35]} 26. Ne4 {[%clk 0:01:02]}  Rxc4 {[%clk 0:02:16]} 27. Qd3 {[%clk 0:00:33]}  b5 {[%clk 0:02:08]} 28. Ng3 {[%clk 0:00:29]}  Qb6 {[%clk 0:01:20]} 29. Bc1 {[%clk 0:00:13]}  Rg4 {[%clk 0:00:51]} 30. Kf1 {[%clk 0:00:07]}  Rd4 {[%clk 0:00:32]} 31. Qe2 {[%clk 0:00:07]}  Rxd1+ {[%clk 0:00:29]} 32. Qxd1 {[%clk 0:00:09]}  Rc8 {[%clk 0:00:23]} 33. Qe1 {[%clk 0:00:09]}  Qd4 {[%clk 0:00:20]} 34. Be3 {[%clk 0:00:09]}  Qg4 {[%clk 0:00:20]} 35. Kg1 {[%clk 0:00:04]}  f5 {[%clk 0:00:17]} 36. Nf1 {[%clk 0:00:03]}  Nh3+ {[%clk 0:00:16]} 37. Kh2 {[%clk 0:00:04]}  Nxf2 {[%clk 0:00:17]} 0-1


[Site "Internet"]

[Event "Chessable Masters - Torneo preliminare"]
[White "Vokhidov, Shamsiddin"]
[Black "Iturrizaga Bonelli, Eduardo"]
[WhiteFideId "14204223"]
[BlackFideId "3901211"]
[WhiteElo "2514"]
[BlackElo "2654"]
[Result "0-1"]
[Round "8"]
[TimeControl "600+2"]
[Date "2023.03.13"]
[WhiteClock "0:00:16"]
[BlackClock "0:00:09"]

1. e4 {[%clk 0:10:01]}  c5 {[%clk 0:09:55]} 2. Nf3 {[%clk 0:10:03]}  e6 {[%clk 0:09:56]} 3. d4 {[%clk 0:10:04]}  cxd4 {[%clk 0:09:58]} 4. Nxd4 {[%clk 0:10:06]}  a6 {[%clk 0:10:00]} 5. c4 {[%clk 0:10:07]}  Nf6 {[%clk 0:10:01]} 6. Nc3 {[%clk 0:10:08]}  Bb4 {[%clk 0:10:02]} 7. Qd3 {[%clk 0:10:09]}  d6 {[%clk 0:09:57]} 8. Nc2 {[%clk 0:10:07]}  Bxc3+ {[%clk 0:09:49]} 9. Qxc3 {[%clk 0:10:09]}  O-O {[%clk 0:09:49]} 10. f3 {[%clk 0:10:08]}  e5 {[%clk 0:09:45]} 11. Be2 {[%clk 0:09:54]}  Be6 {[%clk 0:09:41]} 12. O-O {[%clk 0:09:54]}  Qc7 {[%clk 0:09:31]} 13. Rd1 {[%clk 0:09:40]}  Rc8 {[%clk 0:09:28]} 14. b3 {[%clk 0:08:51]}  b5 {[%clk 0:09:22]} 15. Ba3 {[%clk 0:08:26]}  Ne8 {[%clk 0:09:06]} 16. Ne3 {[%clk 0:08:13]}  Nc6 {[%clk 0:08:59]} 17. Qd2 {[%clk 0:06:42]}  Nd4 {[%clk 0:08:39]} 18. Bf1 {[%clk 0:06:20]}  Qb6 {[%clk 0:08:19]} 19. Kh1 {[%clk 0:06:20]}  a5 {[%clk 0:07:36]} 20. Bb2 {[%clk 0:06:12]}  a4 {[%clk 0:07:21]} 21. Bxd4 {[%clk 0:05:15]}  exd4 {[%clk 0:07:20]} 22. Nc2 {[%clk 0:05:16]}  axb3 {[%clk 0:06:57]} 23. axb3 {[%clk 0:05:16]}  Rxa1 {[%clk 0:06:59]} 24. Rxa1 {[%clk 0:05:17]}  bxc4 {[%clk 0:07:00]} 25. bxc4 {[%clk 0:05:16]}  Bxc4 {[%clk 0:05:29]} 26. Nxd4 {[%clk 0:05:15]}  Bxf1 {[%clk 0:05:13]} 27. Rxf1 {[%clk 0:05:17]}  g6 {[%clk 0:05:10]} 28. Rd1 {[%clk 0:05:04]}  Rc5 {[%clk 0:04:05]} 29. h3 {[%clk 0:04:53]}  d5 {[%clk 0:03:18]} 30. e5 {[%clk 0:04:24]}  Ng7 {[%clk 0:03:18]} 31. Ne2 {[%clk 0:03:46]}  Ne6 {[%clk 0:03:14]} 32. Nc3 {[%clk 0:03:40]}  Qc7 {[%clk 0:02:56]} 33. Nxd5 {[%clk 0:03:18]}  Qxe5 {[%clk 0:02:56]} 34. f4 {[%clk 0:03:19]}  Qh8 {[%clk 0:02:11]} 35. f5 {[%clk 0:03:12]}  gxf5 {[%clk 0:02:04]} 36. Qh6 {[%clk 0:02:40]}  Qg7 {[%clk 0:01:51]} 37. Qh5 {[%clk 0:01:31]}  Qg5 {[%clk 0:01:50]} 38. Qf3 {[%clk 0:01:19]}  f4 {[%clk 0:01:18]} 39. Nc3 {[%clk 0:01:06]}  Re5 {[%clk 0:01:15]} 40. Ne4 {[%clk 0:01:03]}  Qg6 {[%clk 0:01:12]} 41. Nd6 {[%clk 0:00:58]}  Qg3 {[%clk 0:01:04]} 42. Qa8+ {[%clk 0:00:43]}  Nf8 {[%clk 0:00:48]} 43. Qb7 {[%clk 0:00:19]}  Re1+ {[%clk 0:00:43]} 44. Rxe1 {[%clk 0:00:20]}  Qxe1+ {[%clk 0:00:45]} 45. Kh2 {[%clk 0:00:22]}  Qg3+ {[%clk 0:00:33]} 46. Kh1 {[%clk 0:00:23]}  Qe1+ {[%clk 0:00:14]} 47. Kh2 {[%clk 0:00:23]}  Qe6 {[%clk 0:00:15]} 48. Ne4 {[%clk 0:00:23]}  Qe5 {[%clk 0:00:15]} 49. Kh1 {[%clk 0:00:22]}  Kg7 {[%clk 0:00:13]} 50. Qc6 {[%clk 0:00:13]}  Ne6 {[%clk 0:00:11]} 51. Nc3 {[%clk 0:00:11]}  Qe1+ {[%clk 0:00:10]} 52. Kh2 {[%clk 0:00:12]}  Qg3+ {[%clk 0:00:12]} 53. Kh1 {[%clk 0:00:13]}  Qe1+ {[%clk 0:00:07]} 54. Kh2 {[%clk 0:00:14]}  Nd4 {[%clk 0:00:04]} 55. Qc4 {[%clk 0:00:11]}  Qg3+ {[%clk 0:00:05]} 56. Kh1 {[%clk 0:00:12]}  Qe1+ {[%clk 0:00:07]} 57. Kh2 {[%clk 0:00:13]}  Qe3 {[%clk 0:00:08]} 58. Nd5 {[%clk 0:00:11]}  Qg3+ {[%clk 0:00:08]} 59. Kh1 {[%clk 0:00:12]}  Qe1+ {[%clk 0:00:09]} 60. Kh2 {[%clk 0:00:14]}  Ne2 {[%clk 0:00:09]} 61. Qc5 {[%clk 0:00:13]}  Qg3+ {[%clk 0:00:09]} 62. Kh1 {[%clk 0:00:14]}  Qe1+ {[%clk 0:00:10]} 63. Kh2 {[%clk 0:00:15]}  Qg3+ {[%clk 0:00:07]} 64. Kh1 {[%clk 0:00:16]}  f3 {[%clk 0:00:09]} 0-1


[Site "Internet"]

[Event "Chessable Masters - Torneo preliminare"]
[White "Bluebaum, Matthias"]
[Black "Firouzja, Alireza"]
[WhiteFideId "24651516"]
[BlackFideId "12573981"]
[WhiteElo "2601"]
[BlackElo "2745"]
[Result "1-0"]
[Round "8"]
[TimeControl "600+2"]
[Date "2023.03.13"]
[WhiteClock "0:05:23"]
[BlackClock "0:02:16"]

1. d4 {[%clk 0:10:01]}  Nf6 {[%clk 0:10:01]} 2. c4 {[%clk 0:10:02]}  g6 {[%clk 0:10:02]} 3. Nc3 {[%clk 0:10:03]}  Bg7 {[%clk 0:10:04]} 4. e4 {[%clk 0:10:05]}  d6 {[%clk 0:10:05]} 5. Nf3 {[%clk 0:10:06]}  O-O {[%clk 0:10:07]} 6. Be2 {[%clk 0:10:08]}  e5 {[%clk 0:10:03]} 7. Be3 {[%clk 0:10:09]}  Ng4 {[%clk 0:09:53]} 8. Bg5 {[%clk 0:10:10]}  f6 {[%clk 0:09:54]} 9. Bh4 {[%clk 0:10:11]}  g5 {[%clk 0:09:04]} 10. Bg3 {[%clk 0:10:11]}  Nh6 {[%clk 0:09:06]} 11. dxe5 {[%clk 0:10:12]}  fxe5 {[%clk 0:09:02]} 12. h4 {[%clk 0:10:11]}  g4 {[%clk 0:08:56]} 13. Ng5 {[%clk 0:10:12]}  Nc6 {[%clk 0:08:51]} 14. c5 {[%clk 0:10:12]}  Nd4 {[%clk 0:08:17]} 15. Bc4+ {[%clk 0:10:09]}  Kh8 {[%clk 0:08:18]} 16. cxd6 {[%clk 0:10:10]}  Qxd6 {[%clk 0:08:19]} 17. O-O {[%clk 0:09:44]}  Qb4 {[%clk 0:08:10]} 18. Bb3 {[%clk 0:08:11]}  Nxb3 {[%clk 0:08:09]} 19. Qxb3 {[%clk 0:07:55]}  Qe7 {[%clk 0:06:18]} 20. Nd5 {[%clk 0:07:33]}  Qd8 {[%clk 0:05:14]} 21. Rad1 {[%clk 0:07:33]}  c6 {[%clk 0:04:39]} 22. Nf4 {[%clk 0:07:23]}  Qe7 {[%clk 0:04:32]} 23. Nfe6 {[%clk 0:07:19]}  Bxe6 {[%clk 0:04:31]} 24. Nxe6 {[%clk 0:07:14]}  Rf6 {[%clk 0:03:56]} 25. Nxg7 {[%clk 0:07:04]}  Kxg7 {[%clk 0:03:58]} 26. Bxe5 {[%clk 0:06:41]}  Rf8 {[%clk 0:02:54]} 27. Qc3 {[%clk 0:06:28]}  Kg6 {[%clk 0:02:48]} 28. Bxf6 {[%clk 0:06:27]}  Rxf6 {[%clk 0:02:49]} 29. e5 {[%clk 0:06:06]}  Re6 {[%clk 0:02:49]} 30. Rd6 {[%clk 0:05:54]}  Rxd6 {[%clk 0:02:49]} 31. exd6 {[%clk 0:05:55]}  Qxd6 {[%clk 0:02:51]} 32. Qc2+ {[%clk 0:05:49]}  Nf5 {[%clk 0:02:51]} 33. Rd1 {[%clk 0:05:47]}  Qe7 {[%clk 0:02:47]} 34. Qc4 {[%clk 0:05:29]}  h5 {[%clk 0:02:21]} 35. Qg8+ {[%clk 0:05:28]}  Ng7 {[%clk 0:02:21]} 36. Qd8 {[%clk 0:05:23]}  Qf7 {[%clk 0:02:16]} 1-0


[Site "Internet"]

[Event "Chessable Masters - Torneo preliminare"]
[White "Andreikin, Dmitry"]
[Black "Oparin, Grigoriy"]
[WhiteFideId "4158814"]
[BlackFideId "24125890"]
[WhiteElo "2628"]
[BlackElo "2650"]
[Result "1/2-1/2"]
[Round "8"]
[TimeControl "600+2"]
[Date "2023.03.13"]
[WhiteClock "0:02:11"]
[BlackClock "0:05:22"]

1. Nf3 {[%clk 0:10:01]}  Nf6 {[%clk 0:10:01]} 2. c4 {[%clk 0:10:02]}  e6 {[%clk 0:10:01]} 3. Nc3 {[%clk 0:09:53]}  d5 {[%clk 0:10:02]} 4. d4 {[%clk 0:09:54]}  c5 {[%clk 0:10:02]} 5. cxd5 {[%clk 0:09:51]}  cxd4 {[%clk 0:10:03]} 6. Qxd4 {[%clk 0:09:34]}  exd5 {[%clk 0:10:01]} 7. e4 {[%clk 0:09:35]}  dxe4 {[%clk 0:09:59]} 8. Qxd8+ {[%clk 0:09:35]}  Kxd8 {[%clk 0:10:00]} 9. Ng5 {[%clk 0:09:36]}  Be6 {[%clk 0:10:02]} 10. a3 {[%clk 0:09:37]}  Nbd7 {[%clk 0:09:23]} 11. g3 {[%clk 0:09:36]}  h6 {[%clk 0:09:13]} 12. Nxe6+ {[%clk 0:09:05]}  fxe6 {[%clk 0:09:15]} 13. Bg2 {[%clk 0:08:02]}  Nc5 {[%clk 0:09:14]} 14. Be3 {[%clk 0:06:27]}  Rc8 {[%clk 0:09:03]} 15. O-O-O+ {[%clk 0:05:37]}  Ke8 {[%clk 0:09:03]} 16. Kb1 {[%clk 0:05:38]}  Kf7 {[%clk 0:08:08]} 17. b4 {[%clk 0:05:02]}  Ncd7 {[%clk 0:08:06]} 18. Nxe4 {[%clk 0:05:04]}  Nd5 {[%clk 0:08:06]} 19. Bd4 {[%clk 0:04:53]}  a5 {[%clk 0:07:57]} 20. Rc1 {[%clk 0:04:21]}  Be7 {[%clk 0:07:48]} 21. Nc3 {[%clk 0:04:04]}  Nxc3+ {[%clk 0:07:30]} 22. Bxc3 {[%clk 0:03:57]}  axb4 {[%clk 0:07:28]} 23. axb4 {[%clk 0:03:57]}  Rc4 {[%clk 0:07:24]} 24. Bd2 {[%clk 0:03:41]}  Rd4 {[%clk 0:07:16]} 25. Bc3 {[%clk 0:03:40]}  Rc4 {[%clk 0:07:16]} 26. Bd2 {[%clk 0:03:32]}  Rd4 {[%clk 0:07:17]} 27. Rhd1 {[%clk 0:02:54]}  Bxb4 {[%clk 0:07:04]} 28. Bxh6 {[%clk 0:02:40]}  Rxd1 {[%clk 0:06:53]} 29. Rxd1 {[%clk 0:02:42]}  Nf6 {[%clk 0:06:48]} 30. Be3 {[%clk 0:02:35]}  Rxh2 {[%clk 0:06:25]} 31. Bxb7 {[%clk 0:02:35]}  Ng4 {[%clk 0:06:26]} 32. Bd4 {[%clk 0:02:17]}  e5 {[%clk 0:05:51]} 33. Ba7 {[%clk 0:02:11]}  Ke7 {[%clk 0:05:22]} 1/2-1/2


[Site "Internet"]

[Event "Chessable Masters - Torneo preliminare"]
[White "Wei, Yi"]
[Black "Kravtsiv, Martyn"]
[WhiteFideId "8603405"]
[BlackFideId "14113147"]
[WhiteElo "2716"]
[BlackElo "2675"]
[Result "0-1"]
[Round "8"]
[TimeControl "600+2"]
[Date "2023.03.13"]
[WhiteClock "0:02:44"]
[BlackClock "0:02:45"]

1. d4 {[%clk 0:10:01]}  Nf6 {[%clk 0:09:59]} 2. c4 {[%clk 0:10:02]}  e6 {[%clk 0:10:00]} 3. Nc3 {[%clk 0:10:03]}  d5 {[%clk 0:10:00]} 4. cxd5 {[%clk 0:10:04]}  exd5 {[%clk 0:10:00]} 5. Bg5 {[%clk 0:10:05]}  c6 {[%clk 0:10:00]} 6. e3 {[%clk 0:10:05]}  Be7 {[%clk 0:10:00]} 7. Bd3 {[%clk 0:10:05]}  Nbd7 {[%clk 0:10:00]} 8. Nge2 {[%clk 0:10:02]}  Nh5 {[%clk 0:09:57]} 9. Bxe7 {[%clk 0:09:15]}  Qxe7 {[%clk 0:09:59]} 10. Qd2 {[%clk 0:09:06]}  g6 {[%clk 0:09:47]} 11. f3 {[%clk 0:08:50]}  Nb6 {[%clk 0:09:17]} 12. O-O {[%clk 0:08:19]}  O-O {[%clk 0:08:33]} 13. e4 {[%clk 0:08:18]}  Be6 {[%clk 0:07:09]} 14. Rae1 {[%clk 0:06:44]}  Rad8 {[%clk 0:06:59]} 15. e5 {[%clk 0:06:38]}  f5 {[%clk 0:06:42]} 16. exf6 {[%clk 0:06:07]}  Qxf6 {[%clk 0:06:37]} 17. g4 {[%clk 0:06:08]}  Ng7 {[%clk 0:06:30]} 18. Qh6 {[%clk 0:06:08]}  Nc8 {[%clk 0:04:33]} 19. Kg2 {[%clk 0:04:39]}  Nd6 {[%clk 0:04:25]} 20. h3 {[%clk 0:03:59]}  Rde8 {[%clk 0:04:10]} 21. b3 {[%clk 0:03:40]}  Bd7 {[%clk 0:03:07]} 22. Kg3 {[%clk 0:02:43]}  Bf5 {[%clk 0:02:48]} 23. Qd2 {[%clk 0:02:44]}  Bxd3 {[%clk 0:02:48]} 24. Qxd3 {[%clk 0:02:44]}  Re3 {[%clk 0:02:45]} 0-1


[Site "Internet"]

[Event "Chessable Masters - Torneo preliminare"]
[White "Yu, Yangyi"]
[Black "Terry, Renato"]
[WhiteFideId "8603820"]
[BlackFideId "3803457"]
[WhiteElo "2734"]
[BlackElo "2472"]
[Result "1-0"]
[Round "8"]
[TimeControl "600+2"]
[Date "2023.03.13"]
[WhiteClock "0:01:11"]
[BlackClock "0:00:05"]

1. e4 {[%clk 0:10:01]}  g6 {[%clk 0:09:57]} 2. d4 {[%clk 0:09:55]}  Bg7 {[%clk 0:09:59]} 3. Nc3 {[%clk 0:09:56]}  c6 {[%clk 0:10:00]} 4. Bc4 {[%clk 0:09:23]}  d6 {[%clk 0:09:35]} 5. Bb3 {[%clk 0:09:16]}  a6 {[%clk 0:09:00]} 6. Nf3 {[%clk 0:08:44]}  b5 {[%clk 0:08:49]} 7. Ne2 {[%clk 0:08:43]}  Nf6 {[%clk 0:08:34]} 8. Ng3 {[%clk 0:08:39]}  Qc7 {[%clk 0:08:27]} 9. a4 {[%clk 0:08:13]}  O-O {[%clk 0:08:07]} 10. O-O {[%clk 0:08:04]}  Nbd7 {[%clk 0:07:52]} 11. Re1 {[%clk 0:08:00]}  e5 {[%clk 0:07:49]} 12. c3 {[%clk 0:07:53]}  Bb7 {[%clk 0:07:45]} 13. h3 {[%clk 0:07:46]}  c5 {[%clk 0:07:25]} 14. d5 {[%clk 0:07:44]}  c4 {[%clk 0:07:23]} 15. Bc2 {[%clk 0:07:45]}  Nc5 {[%clk 0:07:25]} 16. Bg5 {[%clk 0:07:26]}  Rab8 {[%clk 0:06:53]} 17. Ra2 {[%clk 0:06:57]}  Bc8 {[%clk 0:06:46]} 18. axb5 {[%clk 0:06:55]}  axb5 {[%clk 0:06:45]} 19. Qd2 {[%clk 0:06:50]}  Bd7 {[%clk 0:06:18]} 20. Rea1 {[%clk 0:06:41]}  Rfc8 {[%clk 0:06:18]} 21. Bh6 {[%clk 0:05:11]}  Qd8 {[%clk 0:06:13]} 22. Bxg7 {[%clk 0:05:00]}  Kxg7 {[%clk 0:06:15]} 23. Qe3 {[%clk 0:04:34]}  Na4 {[%clk 0:05:39]} 24. Nd2 {[%clk 0:03:59]}  Nc5 {[%clk 0:04:44]} 25. f4 {[%clk 0:03:51]}  Qb6 {[%clk 0:03:52]} 26. fxe5 {[%clk 0:03:41]}  dxe5 {[%clk 0:03:51]} 27. Kh2 {[%clk 0:03:35]}  Ne8 {[%clk 0:03:35]} 28. Ra7 {[%clk 0:03:14]}  Rc7 {[%clk 0:03:25]} 29. R7a2 {[%clk 0:02:30]}  Na4 {[%clk 0:02:43]} 30. Qe2 {[%clk 0:02:06]}  Nd6 {[%clk 0:02:16]} 31. Rf1 {[%clk 0:02:04]}  Rcc8 {[%clk 0:02:11]} 32. Qf3 {[%clk 0:02:01]}  Qd8 {[%clk 0:02:12]} 33. Nh5+ {[%clk 0:01:39]}  Kh8 {[%clk 0:00:21]} 34. Nf6 {[%clk 0:01:40]}  Nc5 {[%clk 0:00:02]} 35. Qg3 {[%clk 0:01:33]}  Qe7 {[%clk 0:00:03]} 36. Qh4 {[%clk 0:01:33]}  h5 {[%clk 0:00:05]} 37. Qg5 {[%clk 0:01:35]}  Kg7 {[%clk 0:00:05]} 38. Nxh5+ {[%clk 0:01:35]}  Kf8 {[%clk 0:00:07]} 39. Qh6+ {[%clk 0:01:22]}  Ke8 {[%clk 0:00:08]} 40. Qh8+ {[%clk 0:01:19]}  Qf8 {[%clk 0:00:09]} 41. Qxe5+ {[%clk 0:01:20]}  Kd8 {[%clk 0:00:11]} 42. Nf6 {[%clk 0:01:19]}  Rb6 {[%clk 0:00:05]} 43. Ra7 {[%clk 0:01:18]}  Ndb7 {[%clk 0:00:05]} 44. Qg5 {[%clk 0:01:09]}  Qe7 {[%clk 0:00:05]} 45. e5 {[%clk 0:01:11]} 1-0


[Site "Internet"]